bitfinex-derivatives/quotes_BNBF0:USTF0_20250309
["timestamp","ask_amount","ask_price","bid_price","bid_amount"]
[1741536934133,0.549,569.15,569.12,0.35141973]
[1741536934338,0.549,569.15,569.13,0.29567726]
[1741536935431,0.549,569.15,569.14,0.35140738]
[1741536935633,0.549,569.15,569.14,0.64708464]
[1741536937833,0.549,569.15,569.14,0.35140738]
[1741536938034,0.549,569.15,569.14,0.6470131]
[1741536945143,0.749,569.27,569.14,0.35140738]
[1741536945339,0.749,569.27,569.15,0.29550427]
[1741536945642,0.749,569.27,569.16,0.29550427]
[1741536945842,0.749,569.27,569.17,0.29550427]
[1741536946043,0.749,569.27,569.18,0.29550427]
[1741536946243,0.749,569.27,569.19,0.29550427]
[1741536946437,0.749,569.27,569.2,0.29550427]
[1741536946638,0.749,569.27,569.21,0.29550427]
[1741536946943,0.749,569.27,569.22,0.29550427]
[1741536947144,0.749,569.27,569.15,0.29550427]
[1741536947340,0.749,569.27,569.16,0.29550427]
[1741536947539,0.749,569.27,569.15,0.29550427]
[1741536947745,0.749,569.27,569.16,0.29550427]
[1741536947943,0.749,569.27,569.17,0.29550427]
[1741536948137,0.749,569.27,569.15,0.29550427]
[1741536948345,0.749,569.27,569.16,0.29550427]
[1741536948544,0.749,569.27,569.15,0.29550427]
[1741536948744,0.749,569.27,569.14,0.35140738]
[1741536949046,0.749,569.27,569.15,0.29559309]
[1741536949840,0.732,569.47,569.15,0.29559309]
[1741536950543,0.732,569.47,569.16,0.35139503]
[1741536950743,0.732,569.47,569.17,0.29559309]
[1741536951141,0.732,569.47,569.18,0.35138269]
[1741536951345,0.732,569.47,569.19,0.29559309]
[1741536951546,0.732,569.47,569.2,0.35137034]
[1741536951745,0.732,569.47,569.21,0.29559309]
[1741536951942,0.732,569.47,569.22,0.35135799]
[1741536952142,0.732,569.47,569.23,0.29559309]
[1741536952344,0.763,569.49,569.24,0.35134565]
[1741536952542,0.763,569.49,569.25,0.29559309]
[1741536953141,0.763,569.49,569.26,0.3513333]
[1741536953345,0.763,569.49,569.27,0.29559309]
[1741536953642,0.763,569.49,569.28,0.35132096]
[1741536953845,0.763,569.49,569.29,0.29559309]
[1741536954043,0.763,569.49,569.3,0.35130862]
[1741536954246,0.763,569.49,569.31,0.29559309]
[1741536954551,1.466,569.5,569.32,0.35129628]
[1741536954751,1.466,569.5,569.33,0.29559309]
[1741536954948,1.466,569.5,569.34,0.35128394]
[1741536955146,1.466,569.5,569.35,0.29559309]
[1741536955751,1.466,569.5,569.36,0.3512716]
[1741536956152,1.466,569.5,569.37,0.29547565]
[1741536956452,1.466,569.5,569.38,0.35125926]
[1741536956646,1.466,569.5,569.39,0.29547565]
[1741536956848,1.466,569.5,569.4,0.6467242]
[1741536957048,1.466,569.5,569.41,0.64671803]
[1741536957251,1.466,569.5,569.42,0.64671186]
[1741536957453,1.466,569.5,569.43,0.6467057]
[1741536957753,1.466,569.5,569.44,0.64669953]
[1741536957954,1.466,569.5,569.45,0.295483]
[1741536958253,1.365,569.5,569.45,0.295483]
[1741536959753,1.365,569.5,569.46,0.35120991]
[1741536959957,1.365,569.5,569.47,0.295483]
[1741536960157,1.365,569.5,569.48,0.35119758]
[1741536960353,1.365,569.5,569.49,0.295483]
[1741536960558,1.365,569.5,569.49,0.64667441]
[1741536962758,0.849,569.5,569.49,0.64667441]
[1741536962966,0.849,569.5,569.49,0.64652724]
[1741536966363,0.849,569.5,569.49,0.35119141]
[1741536966660,0.849,569.5,569.49,0.64653173]
[1741536971865,0.849,569.5,569.49,0.35119141]
[1741536972071,0.849,569.5,569.49,0.64653605]
[1741536973767,0.849,569.5,569.49,0.35119141]
[1741536973973,0.849,569.5,569.49,0.64658231]
[1741536975574,0.849,569.5,569.49,0.35119141]
[1741536975770,0.849,569.5,569.49,0.64657787]
[1741536975972,0.849,569.5,569.49,0.35119141]
[1741536976173,0.849,569.5,569.49,0.64657809]
[1741536979373,0.849,569.5,569.49,0.64650591]
[1741536988177,0.849,569.5,569.49,0.35119141]
[1741536988383,0.849,569.5,569.49,0.64650625]
[1741536990286,0.849,569.5,569.49,0.64649778]
[1741536992783,0.21958001,569.5,569.49,0.64649778]
[1741536992987,0.07140834,569.5,569.49,0.64649778]
[1741536995681,0.07140834,569.5,569.49,0.64652979]
[1741536997387,3.952,569.85,569.49,0.64648983]
[1741536997581,3.952,569.85,569.5,0.29529842]
[1741536997982,2.142,569.85,569.5,0.29529842]
[1741536999086,2.142,569.85,569.49,0.35119141]
[1741536999389,2.142,569.85,569.5,0.29533603]
[1741536999682,2.142,569.85,569.51,0.29533603]
[1741536999890,2.142,569.85,569.52,0.29533603]
[1741537000187,2.142,569.85,569.53,0.29533603]
[1741537000384,2.142,569.85,569.54,0.29533603]
[1741537000590,2.142,569.85,569.55,0.35115442]
[1741537000787,2.142,569.85,569.56,0.29533603]
[1741537000985,2.142,569.85,569.55,0.35115442]
[1741537001188,2.142,569.85,569.56,0.29529226]
[1741537002090,1.383,569.85,569.57,0.64643434]
[1741537002390,1.383,569.85,569.58,0.64642818]
[1741537002590,1.383,569.85,569.59,0.64642202]
[1741537002791,0.8,569.85,569.6,0.29529226]
[1741537002991,0.8,569.85,569.61,0.29529226]
[1741537003190,0.8,569.85,569.62,0.29529226]
[1741537003390,0.724,569.9,569.63,0.29529226]
[1741537003591,0.724,569.9,569.64,0.29529226]
[1741537003788,0.724,569.9,569.65,0.29529226]
[1741537003988,0.724,569.9,569.66,0.29529226]
[1741537004389,0.724,569.9,569.67,0.29529226]
[1741537004691,0.724,569.9,569.68,0.29532252]
[1741537004890,0.724,569.9,569.62,0.29532252]
[1741537006184,0.724,569.9,569.6,0.29532252]
[1741537006589,0.724,569.9,569.61,0.35111743]
[1741537006785,0.724,569.9,569.62,0.29532252]
[1741537006989,0.724,569.9,569.63,0.3511051]
[1741537007191,0.724,569.9,569.64,0.29532252]
[1741537007492,0.724,569.9,569.65,0.35109277]
[1741537007787,0.724,569.9,569.66,0.29532252]
[1741537013794,0.724,569.9,569.65,0.35109277]
[1741537015696,0.724,569.9,569.66,0.29545593]
[1741537019193,0.724,569.9,569.65,0.35109277]
[1741537019395,0.724,569.9,569.66,0.29548208]
[1741537021195,0.676,569.92,569.66,0.29548208]
[1741537024099,0.704,569.96,569.66,0.29548208]
[1741537026100,0.704,569.96,569.65,0.35109277]
[1741537026101,0.704,569.96,569.67,0.29542308]
[1741537026296,0.704,569.96,569.66,0.29542308]
[1741537028100,0.704,569.96,569.66,0.64650969]
[1741537028297,0.704,569.96,569.67,0.29542308]
[1741537028501,0.704,569.96,569.66,0.35108661]
[1741537028502,0.704,569.96,569.68,0.29542308]
[1741537028701,0.704,569.96,569.69,0.29542308]
[1741537028903,0.704,569.96,569.7,0.29542308]
[1741537029202,0.704,569.96,569.71,0.29542308]
[1741537029397,0.704,569.96,569.72,0.29542308]
[1741537029597,0.704,569.96,569.66,0.35108661]
[1741537029803,0.704,569.96,569.67,0.29529901]
[1741537030004,0.704,569.96,569.68,0.29529901]
[1741537030206,0.704,569.96,569.69,0.29529901]
[1741537030399,0.704,569.96,569.7,0.29529901]
[1741537030604,0.704,569.96,569.71,0.29529901]
[1741537030804,0.704,569.96,569.72,0.29529901]
[1741537031004,0.704,569.96,569.73,0.29529901]
[1741537031202,0.704,569.96,569.67,0.29529901]
[1741537031408,0.704,569.96,569.68,0.29536443]
[1741537031609,0.799,569.98,569.67,0.29536443]
[1741537033211,0.799,569.98,569.66,0.35108661]
[1741537033414,0.799,569.98,569.67,0.29543792]
[1741537033917,0.091,570.0,569.67,0.29543792]
[1741537034118,0.091,570.0,569.66,0.35108661]
[1741537036311,1.361,570.01,569.66,0.35108661]
[1741537038019,1.361,570.01,569.67,0.2953868]
[1741537038718,1.361,570.01,569.68,0.29530069]
[1741537038913,1.361,570.01,569.69,0.29530069]
[1741537039114,1.361,570.01,569.7,0.29530069]
[1741537039316,1.361,570.01,569.66,0.35108661]
[1741537039317,1.361,570.01,569.71,0.29530069]
[1741537039517,1.361,570.01,569.72,0.64635032]
[1741537039718,1.361,570.01,569.73,0.64634416]
[1741537039914,1.361,570.01,569.74,0.646338]
[1741537040119,1.361,570.01,569.75,0.29530069]
[1741537040419,1.361,570.01,569.76,0.29530069]
[1741537040615,1.361,570.01,569.77,0.29530069]
[1741537040920,1.361,570.01,569.78,0.64631336]
[1741537041114,1.361,570.01,569.79,0.6463072]
[1741537041318,1.361,570.01,569.8,0.29530069]
[1741537046719,0.803,570.01,569.8,0.29530069]
[1741537047317,2.22,570.02,569.8,0.29530069]
[1741537050322,2.22,570.02,569.81,0.29530069]
[1741537050522,2.22,570.02,569.82,0.29530069]
[1741537050724,2.22,570.02,569.19,0.29530069]
[1741537050925,2.22,570.02,569.2,0.29545663]
[1741537051124,2.22,570.02,569.21,0.29545663]
[1741537051424,2.22,570.02,569.22,0.29545663]
[1741537051625,2.22,570.02,569.23,0.64680845]
[1741537051926,2.22,570.02,569.24,0.29545663]
[1741537054430,1.704,570.02,569.24,0.29545663]
[1741537054728,1.704,570.02,569.25,0.35133948]
[1741537054924,1.704,570.02,569.26,0.29545663]
[1741537055129,1.704,570.02,569.27,0.35132713]
[1741537055429,1.704,570.02,569.28,0.29545663]
[1741537056525,1.704,570.02,569.29,0.29547687]
[1741537056726,1.704,570.02,569.3,0.29547687]
[1741537056931,0.949,570.02,569.28,0.29547687]
[1741537057126,0.949,570.02,569.29,0.29547687]
[1741537057334,0.672,570.01,569.3,0.29547687]
[1741537057527,0.672,570.01,569.31,0.29547687]
[1741537057726,0.672,570.01,569.32,0.29547687]
[1741537058032,0.672,570.01,569.33,0.29547687]
[1741537058233,0.672,570.01,569.34,0.35128394]
[1741537058435,0.672,570.01,569.35,0.29547687]
[1741537058825,0.085,570.0,569.35,0.29547687]
[1741537060233,0.658,569.99,569.34,0.35128394]
[1741537060431,0.658,569.99,569.35,0.29546918]
[1741537060630,0.791,569.98,569.36,0.3512716]
[1741537060927,0.791,569.98,569.37,0.29546918]
[1741537063635,0.791,569.98,569.38,0.35125926]
[1741537063835,0.791,569.98,569.38,0.64668778]
[1741537064036,0.791,569.98,569.39,0.29542852]
[1741537064238,0.791,569.98,569.4,0.35124692]
[1741537064437,0.791,569.98,569.41,0.29542852]
[1741537065538,0.791,569.98,569.42,0.35123458]
[1741537065739,0.791,569.98,569.43,0.29544081]
[1741537066539,0.537,569.97,569.43,0.29544081]
[1741537070340,0.613,569.96,569.43,0.29544081]
[1741537072245,0.30545876,569.95,569.43,0.29544081]
[1741537072539,0.30545876,569.95,569.44,0.29544081]
[1741537072745,1.03693911,569.94,569.04,0.29544081]
[1741537072938,0.30545876,569.95,569.05,0.29544081]
[1741537074145,0.613,569.96,569.05,0.29544081]
[1741537074341,0.613,569.96,569.06,0.29544081]
[1741537074742,0.613,569.96,569.07,0.29544081]
[1741537075046,0.613,569.96,569.05,0.29544081]
[1741537075247,0.305503,569.95,569.08,0.29544081]
[1741537075545,0.305503,569.95,569.09,0.29544081]
[1741537075747,0.305503,569.95,569.05,0.29544081]
[1741537075946,0.305503,569.95,569.04,0.35146914]
[1741537075947,0.305503,569.95,569.06,0.29544081]
[1741537076145,0.305503,569.95,569.05,0.29544081]
[1741537076345,0.305503,569.95,569.06,0.29544081]
[1741537076645,0.305503,569.95,569.07,0.29566323]
[1741537076846,0.305503,569.95,569.08,0.29566323]
[1741537077044,0.613,569.96,569.09,0.29566323]
[1741537077440,0.30552714,569.94,569.1,0.29566323]
[1741537077644,0.30552714,569.94,569.11,0.29566323]
[1741537077946,0.30552714,569.94,569.12,0.29566323]
[1741537078147,0.83552714,569.94,569.04,0.35146914]
[1741537078446,0.83552714,569.94,569.05,0.29566859]
[1741537078647,0.83552714,569.94,569.06,0.29566859]
[1741537078843,0.83552714,569.94,569.07,0.29566859]
[1741537079041,0.83552714,569.94,569.08,0.29566859]
[1741537079341,0.83552714,569.94,569.09,0.29566859]
[1741537079645,0.83552714,569.94,569.1,0.29566859]
[1741537079846,0.83552714,569.94,569.05,0.29566859]
[1741537080147,0.53,569.94,569.06,0.29566859]
[1741537080346,0.53,569.94,569.07,0.29566859]
[1741537080645,1.0358026,569.93,569.04,0.35146914]
[1741537080843,1.0358026,569.92,569.05,0.29572441]
[1741537081043,1.0358026,569.91,569.05,0.29572441]
[1741537081246,1.0358026,569.9,569.06,0.29572441]
[1741537081445,0.761,569.91,569.04,0.35146914]
[1741537081446,2.69343824,569.89,569.05,0.29572441]
[1741537081641,2.69343824,569.88,569.06,0.29572441]
[1741537081842,2.69343824,569.87,569.05,0.29572441]
[1741537082046,2.68958491,569.86,569.06,0.29572441]
[1741537082341,2.68958491,569.85,569.05,0.29572441]
[1741537082546,2.68958491,569.85,569.06,0.29572441]
[1741537082547,1.03445573,569.84,569.06,0.29572441]
[1741537082742,1.03445573,569.83,569.05,0.29572441]
[1741537082938,1.03445573,569.82,569.06,0.29572441]
[1741537083144,0.791,569.85,569.07,0.29574315]
[1741537083344,0.791,569.85,569.08,0.29574315]
[1741537083646,0.791,569.85,569.09,0.29574315]
[1741537083847,0.791,569.85,569.05,0.29574315]
[1741537084046,0.791,569.85,569.06,0.29574315]
[1741537084242,0.791,569.85,569.05,0.29574315]
[1741537084443,0.791,569.85,569.06,0.29574315]
[1741537084947,0.791,569.85,569.04,0.35146914]
[1741537085143,0.791,569.85,569.07,0.29567126]
[1741537085343,0.791,569.85,569.05,0.29567126]
[1741537085548,0.791,569.85,569.04,0.35146914]
[1741537085743,0.791,569.85,569.06,0.29569779]
[1741537085945,0.791,569.85,569.07,0.29569779]
[1741537086145,0.791,569.85,569.05,0.29569779]
[1741537086341,0.30554995,569.84,569.06,0.29569779]
[1741537086541,0.30554995,569.84,569.04,0.35146914]
[1741537086850,0.30554995,569.84,569.05,0.29569093]
[1741537088443,0.30554995,569.84,569.06,0.29570143]
[1741537088644,0.30554995,569.84,569.05,0.29570143]
[1741537088850,0.30554995,569.84,569.06,0.29570143]
[1741537089050,0.081,569.83,569.07,0.29570143]
[1741537089245,0.081,569.83,569.08,0.29570143]
[1741537089449,0.38654458,569.83,569.09,0.29570143]
[1741537089645,0.38654458,569.83,569.1,0.29570143]
[1741537089851,0.38654458,569.83,569.05,0.29570143]
[1741537090050,0.38654458,569.83,569.04,0.35146914]
[1741537090251,0.38654458,569.83,569.05,0.29567051]
[1741537090652,1.13154458,569.83,569.06,0.64712729]
[1741537090853,1.13154458,569.83,569.07,0.29567051]
[1741537091048,1.13154458,569.83,569.08,0.29567051]
[1741537091248,1.13154458,569.83,569.09,0.29567051]
[1741537091453,1.13154458,569.83,569.1,0.29567051]
[1741537091655,1.13154458,569.83,569.11,0.29567051]
[1741537091855,1.13154458,569.83,569.07,0.29567051]
[1741537092055,0.826,569.83,569.12,0.29567051]
[1741537092256,0.826,569.83,569.13,0.29567051]
[1741537092551,0.30553251,569.82,569.14,0.29567051]
[1741537092760,0.30553251,569.82,569.07,0.29567051]
[1741537092955,0.30553251,569.82,569.08,0.29567051]
[1741537093257,2.34299316,569.81,569.09,0.29567051]
[1741537093457,1.03101683,569.8,569.07,0.29567051]
[1741537093654,1.3115747,569.81,569.1,0.29567051]
[1741537093858,1.03103307,569.8,569.11,0.29567051]
[1741537094059,1.3115747,569.81,569.06,0.35145678]
[1741537094060,2.34260777,569.79,569.07,0.29567051]
[1741537094258,1.03105608,569.78,569.08,0.29567051]
[1741537094458,1.03105608,569.77,569.07,0.29567051]
[1741537094760,1.3115747,569.77,569.08,0.29567051]
[1741537094961,1.3115747,569.76,569.07,0.29567051]
[1741537095160,1.3115747,569.76,569.08,0.29567051]
[1741537095359,1.3115747,569.76,569.06,0.35145678]
[1741537095360,1.3115747,569.75,569.09,0.29567051]
[1741537095561,1.3115747,569.75,569.1,0.29581108]
[1741537095763,1.3115747,569.74,569.07,0.29581108]
[1741537095963,1.3115747,569.74,569.08,0.29581108]
[1741537096263,0.30560361,569.76,569.09,0.29581108]
[1741537096462,0.30560361,569.76,569.07,0.29581108]
[1741537096665,0.30560361,569.76,569.08,0.29581108]
[1741537096864,0.30560361,569.76,569.07,0.29581108]
[1741537097064,0.30560361,569.76,569.08,0.29581108]
[1741537097263,0.30560361,569.76,569.07,0.29581108]
[1741537097563,0.30560361,569.76,569.06,0.35145678]
[1741537097564,0.30560361,569.76,569.08,0.29581108]
[1741537097763,0.777,569.75,569.07,0.29581108]
[1741537097965,0.777,569.75,569.08,0.29581108]
[1741537098164,0.777,569.75,569.07,0.29581108]
[1741537098356,0.30557678,569.74,569.08,0.29581108]
[1741537098557,0.30557678,569.74,569.07,0.29581108]
[1741537098765,0.30557678,569.74,569.08,0.29581108]
[1741537099160,0.30557678,569.74,569.09,0.29581108]
[1741537099363,0.30557678,569.74,569.07,0.29581108]
[1741537099559,0.30557678,569.74,569.08,0.29581108]
[1741537099863,0.30557678,569.74,569.09,0.29581108]
[1741537100064,0.30557678,569.74,569.1,0.29581108]
[1741537100364,0.30557678,569.74,569.11,0.29581108]
[1741537100666,0.30557678,569.74,569.12,0.29581108]
[1741537100867,0.30557678,569.74,569.13,0.29572525]
[1741537101166,0.777,569.75,569.14,0.29572525]
[1741537101368,0.777,569.75,569.07,0.29572525]
[1741537101558,0.777,569.75,569.15,0.29572525]
[1741537101766,0.777,569.75,569.16,0.29572525]
[1741537102067,0.777,569.75,569.17,0.29572525]
[1741537102366,0.30555531,569.74,569.18,0.29572525]
[1741537102566,0.30555531,569.74,569.07,0.29572525]
[1741537102867,0.30555531,569.74,569.08,0.29573438]
[1741537103059,0.30555531,569.74,569.09,0.29573438]
[1741537103263,0.30555531,569.74,569.1,0.29573438]
[1741537103461,0.567,569.73,569.07,0.29573438]
[1741537104474,0.30555397,569.72,569.07,0.29573438]
[1741537105877,0.735,569.71,569.07,0.29573438]
[1741537106478,0.735,569.71,569.08,0.35144443]
[1741537106676,0.735,569.71,569.09,0.29573438]
[1741537106979,0.735,569.71,569.08,0.35144443]
[1741537107179,0.735,569.71,569.09,0.29559558]
[1741537107378,0.735,569.71,569.1,0.64702766]
[1741537107574,0.735,569.71,569.11,0.64702149]
[1741537107776,0.735,569.71,569.12,0.35141973]
[1741537107978,0.735,569.71,569.13,0.29559558]
[1741537108177,0.079,569.7,569.14,0.35140738]
[1741537108378,0.079,569.7,569.15,0.29559558]
[1741537108576,0.079,569.7,569.16,0.35139503]
[1741537108777,0.079,569.7,569.17,0.29559558]
[1741537108978,0.079,569.7,569.18,0.35138269]
[1741537109179,0.079,569.7,569.19,0.29559558]
[1741537109880,0.079,569.7,569.2,0.29562453]
[1741537110080,0.079,569.7,569.21,0.29562453]
[1741537110276,0.079,569.7,569.22,0.29562453]
[1741537110481,0.079,569.7,569.19,0.29562453]
[1741537110776,0.079,569.7,569.2,0.29562453]
[1741537110983,0.079,569.7,569.19,0.29562453]
[1741537111280,0.079,569.7,569.2,0.29562453]
[1741537111473,0.856,569.7,569.19,0.29562453]
[1741537111679,0.856,569.7,569.2,0.29562453]
[1741537111880,0.856,569.7,569.21,0.29562453]
[1741537112280,0.856,569.7,569.22,0.29562453]
[1741537112481,0.856,569.7,569.19,0.29562453]
[1741537112680,0.856,569.7,569.2,0.29562453]
[1741537112882,1.616,569.7,569.19,0.29562453]
[1741537113081,1.616,569.7,569.2,0.29562453]
[1741537113283,1.616,569.7,569.19,0.29562453]
[1741537113482,1.616,569.7,569.2,0.29562453]
[1741537113683,1.616,569.7,569.19,0.29562453]
[1741537113884,1.616,569.7,569.2,0.29562453]
[1741537114083,1.616,569.7,569.19,0.29562453]
[1741537114283,0.30560361,569.69,569.2,0.29562453]
[1741537114480,0.30560361,569.69,569.19,0.29562453]
[1741537114684,0.30560361,569.69,569.18,0.35138269]
[1741537114685,0.30560361,569.69,569.2,0.29562453]
[1741537114884,0.30560361,569.69,569.21,0.29562453]
[1741537115084,0.30560361,569.69,569.19,0.29562453]
[1741537115282,0.30560361,569.69,569.2,0.29562453]
[1741537115479,0.30560361,569.69,569.19,0.29562453]
[1741537115785,0.30560361,569.69,569.2,0.29562453]
[1741537116086,1.616,569.7,569.21,0.29562453]
[1741537116285,1.616,569.7,569.22,0.29562453]
[1741537116484,2.234,569.7,569.19,0.29562453]
[1741537116683,2.234,569.7,569.2,0.29562453]
[1741537117087,2.234,569.7,569.21,0.29562453]
[1741537117388,0.30555397,569.69,569.22,0.29562453]
[1741537117680,0.30555397,569.69,569.23,0.29569697]
[1741537117881,0.30555397,569.69,569.24,0.29569697]
[1741537118085,0.30555397,569.69,569.25,0.29569697]
[1741537118288,0.30555397,569.69,569.26,0.29569697]
[1741537118481,0.85555397,569.69,569.19,0.29569697]
[1741537118685,0.85555397,569.69,569.2,0.29569697]
[1741537118888,0.85555397,569.69,569.19,0.29569697]
[1741537119089,0.55,569.69,569.2,0.29569697]
[1741537119288,0.55,569.69,569.19,0.29569697]
[1741537119588,0.30553653,569.68,569.2,0.29569697]
[1741537119883,0.30553653,569.68,569.21,0.29569697]
[1741537120088,0.55,569.69,569.22,0.29569697]
[1741537120283,0.55,569.69,569.23,0.29569697]
[1741537120489,0.55,569.69,569.18,0.35138269]
[1741537120790,0.55,569.69,569.19,0.29565485]
[1741537122091,1.366,569.69,569.19,0.29565485]
[1741537122285,1.366,569.69,569.18,0.35138269]
[1741537122487,1.366,569.69,569.19,0.29567873]
[1741537127688,1.366,569.69,569.2,0.29572601]
[1741537127889,1.366,569.69,569.19,0.29572601]
[1741537128090,1.366,569.69,569.2,0.29572601]
[1741537128290,1.366,569.69,569.19,0.29572601]
[1741537128491,1.366,569.69,569.2,0.29572601]
[1741537128691,1.366,569.69,569.18,0.35138269]
[1741537128692,1.366,569.69,569.19,0.29572601]
[1741537128892,1.366,569.69,569.2,0.29572601]
[1741537129188,1.366,569.69,569.21,0.29572601]
[1741537129395,0.30557946,569.68,569.19,0.29572601]
[1741537129695,0.30557946,569.68,569.2,0.29572601]
[1741537129993,0.30557946,569.68,569.21,0.29572601]
[1741537130188,0.076,569.67,569.22,0.29572601]
[1741537130492,0.076,569.67,569.23,0.29572601]
[1741537130693,0.076,569.67,569.19,0.29572601]
[1741537130893,0.076,569.67,569.2,0.29572601]
[1741537131093,0.671,569.66,569.19,0.29572601]
[1741537131291,1.03941756,569.65,568.73,1.31676728]
[1741537131593,0.671,569.66,568.74,0.64747355]
[1741537131793,1.03937458,569.65,568.75,0.29581902]
[1741537131989,1.03937458,569.64,568.75,0.29581902]
[1741537132189,1.32164158,569.65,568.75,0.29581902]
[1741537132591,1.32164158,569.64,568.76,0.35164216]
[1741537132890,1.32164158,569.64,568.77,0.29581902]
[1741537133088,1.32164158,569.63,568.77,0.29581902]
[1741537133288,1.32164158,569.63,568.78,0.3516298]
[1741537133489,0.671,569.66,568.79,0.29581902]
[1741537133694,0.671,569.66,568.8,0.35161744]
[1741537133895,0.671,569.66,568.81,0.29581902]
[1741537134193,1.3216589,569.65,568.82,0.35160507]
[1741537134389,1.3216589,569.65,568.83,0.29581902]
[1741537134697,1.62730546,569.65,568.83,0.29581902]
[1741537134895,1.3216589,569.64,568.82,0.35160507]
[1741537135193,1.3216589,569.64,568.83,0.29578005]
[1741537135497,0.30564656,569.65,568.84,0.35159271]
[1741537135692,0.30564656,569.65,568.85,0.29578005]
[1741537135894,0.30564656,569.65,568.86,0.35158035]
[1741537136093,0.63,569.64,568.87,0.29578005]
[1741537136592,0.63,569.64,568.86,0.35158035]
[1741537136895,0.63,569.64,568.87,0.29579786]
[1741537137096,1.32160304,569.63,568.87,0.29579786]
[1741537137596,1.62724557,569.63,568.87,0.29579786]
[1741537137796,0.30564253,569.63,568.87,0.29579786]
[1741537138394,0.30564253,569.63,568.86,0.35158035]
[1741537138696,0.30564253,569.63,568.87,0.29579541]
[1741537140097,0.63,569.64,568.87,0.29579541]
[1741537140497,0.30564253,569.62,568.87,0.29579541]
[1741537141795,0.63,569.61,568.87,0.29579541]
[1741537143100,0.63,569.61,568.87,0.64736958]
[1741537143298,0.63,569.61,568.88,0.29578537]
[1741537145594,0.644,569.6,568.88,0.29578537]
[1741537146202,1.32101427,569.59,568.88,0.29578537]
[1741537146603,0.644,569.6,568.88,0.29578537]
[1741537146807,0.565,569.58,568.88,0.29578537]
[1741537148305,0.565,569.58,568.42,0.29578537]
[1741537148503,0.565,569.58,568.41,0.30564119]
[1741537148702,0.565,569.58,568.59,1.31676728]
[1741537148898,0.565,569.58,568.6,0.29580372]
[1741537149099,0.565,569.58,568.61,0.29580372]
[1741537149308,0.565,569.58,568.62,0.29580372]
[1741537149502,0.565,569.58,568.63,0.29580372]
[1741537149699,0.565,569.58,568.64,0.29580372]
[1741537149905,0.565,569.58,568.65,0.29580372]
[1741537150099,0.30571368,569.57,568.6,0.29580372]
[1741537150298,0.30571368,569.57,568.61,0.29580372]
[1741537150500,0.30571368,569.57,568.62,0.29584515]
[1741537150697,0.30571368,569.57,568.6,0.29584515]
[1741537150901,0.30571368,569.57,568.61,0.29584515]
[1741537151104,0.30571368,569.57,568.62,0.29584515]
[1741537151299,0.30571368,569.57,568.6,0.29584515]
[1741537151504,0.37871368,569.57,568.61,0.29584515]
[1741537151698,0.37871368,569.57,568.62,0.29584515]
[1741537151904,0.37871368,569.57,568.63,0.29584515]
[1741537152199,1.19471368,569.57,568.64,0.29584515]
[1741537152603,1.19471368,569.57,568.65,0.29584515]
[1741537152801,1.19471368,569.57,568.66,0.29584515]
[1741537152997,1.19471368,569.57,568.46,0.29584515]
[1741537153196,1.19471368,569.57,568.47,0.29584515]
[1741537153400,1.19471368,569.57,568.48,0.29584515]
[1741537153599,1.19471368,569.57,568.49,0.29584515]
[1741537153904,1.19471368,569.57,568.5,0.29584515]
[1741537154106,1.19471368,569.57,568.46,0.29584515]
[1741537154304,1.19471368,569.57,568.51,0.29584515]
[1741537154500,1.19471368,569.57,568.34,0.3057392]
[1741537154501,1.84671368,569.57,568.52,0.29584515]
[1741537154806,1.84671368,569.57,568.53,0.29584515]
[1741537155006,1.84671368,569.57,568.44,0.29584515]
[1741537155207,1.541,569.57,568.45,0.29584515]
[1741537155501,1.541,569.57,568.46,0.29584515]
[1741537156006,2.3576507,569.56,568.47,0.29584515]
[1741537156206,1.03779709,569.55,568.48,0.29584515]
[1741537156406,1.03779709,569.54,568.49,0.29584515]
[1741537156707,1.03779709,569.53,568.5,0.29584515]
[1741537156907,1.31985361,569.52,568.51,0.29584515]
[1741537157108,1.03729372,569.51,568.28,0.29584515]
[1741537157406,1.03729372,569.5,568.29,0.29584515]
[1741537157606,1.03729372,569.49,568.3,0.29584515]